[Event "Early Titled Tuesday Blitz | February 8 2022"]
[White "Camacho Collados, Jose"]
[Black "Vokhidov, Shamsiddin"]
[WhiteFideId "2265427"]
[BlackFideId "14204223"]
[WhiteElo "2351"]
[BlackElo "2611"]
[Result "0-1"]
[Round "02"]
[TimeControl "180+1"]
[Date "2022.02.08"]
[WhiteClock "0:00:01"]
[BlackClock "0:00:24"]

1. e4 {[%clk 0:03:00]}  c5 {[%clk 0:03:00]} 2. Nf3 {[%clk 0:02:59]}  e6 {[%clk 0:03:00]} 3. g3 {[%clk 0:02:59]}  Nc6 {[%clk 0:02:59]} 4. Bg2 {[%clk 0:02:58]}  Nf6 {[%clk 0:03:00]} 5. d3 {[%clk 0:02:59]}  d5 {[%clk 0:02:59]} 6. Nbd2 {[%clk 0:02:57]}  Be7 {[%clk 0:02:59]} 7. O-O {[%clk 0:02:57]}  Qc7 {[%clk 0:02:57]} 8. Re1 {[%clk 0:02:56]}  b6 {[%clk 0:02:57]} 9. c3 {[%clk 0:02:56]}  dxe4 {[%clk 0:02:46]} 10. dxe4 {[%clk 0:02:55]}  Bb7 {[%clk 0:02:46]} 11. a4 {[%clk 0:02:52]}  O-O {[%clk 0:02:45]} 12. Nc4 {[%clk 0:02:50]}  Rad8 {[%clk 0:02:42]} 13. Qc2 {[%clk 0:02:47]}  Ba6 {[%clk 0:02:40]} 14. Bf4 {[%clk 0:02:45]}  Qc8 {[%clk 0:02:37]} 15. Nce5 {[%clk 0:02:42]}  Nxe5 {[%clk 0:02:35]} 16. Nxe5 {[%clk 0:02:43]}  Nd7 {[%clk 0:02:30]} 17. a5 {[%clk 0:02:41]}  Nxe5 {[%clk 0:02:24]} 18. Bxe5 {[%clk 0:02:41]}  Bd3 {[%clk 0:02:22]} 19. Qc1 {[%clk 0:02:30]}  b5 {[%clk 0:02:19]} 20. a6 {[%clk 0:02:28]}  g5 {[%clk 0:02:13]} 21. g4 {[%clk 0:02:21]}  f6 {[%clk 0:02:10]} 22. Bg3 {[%clk 0:02:20]}  e5 {[%clk 0:02:09]} 23. h3 {[%clk 0:02:18]}  Rd6 {[%clk 0:02:04]} 24. Bf1 {[%clk 0:02:18]}  Rfd8 {[%clk 0:02:00]} 25. Bxd3 {[%clk 0:02:09]}  Rxd3 {[%clk 0:02:01]} 26. Qc2 {[%clk 0:02:09]}  c4 {[%clk 0:01:59]} 27. Red1 {[%clk 0:01:55]}  Bc5 {[%clk 0:01:55]} 28. Rxd3 {[%clk 0:01:48]}  Rxd3 {[%clk 0:01:56]} 29. Kg2 {[%clk 0:01:48]}  Qc6 {[%clk 0:01:54]} 30. Qe2 {[%clk 0:01:46]}  Qd6 {[%clk 0:01:51]} 31. h4 {[%clk 0:01:18]}  h6 {[%clk 0:01:50]} 32. hxg5 {[%clk 0:01:15]}  hxg5 {[%clk 0:01:51]} 33. Rh1 {[%clk 0:00:56]}  Qxa6 {[%clk 0:01:47]} 34. Qf1 {[%clk 0:00:46]}  Qb7 {[%clk 0:01:40]} 35. Qe1 {[%clk 0:00:44]}  Qd7 {[%clk 0:01:33]} 36. Rh6 {[%clk 0:00:39]}  Rd1 {[%clk 0:01:15]} 37. Qe2 {[%clk 0:00:39]}  Kg7 {[%clk 0:01:11]} 38. Qf3 {[%clk 0:00:39]}  Kxh6 {[%clk 0:01:01]} 39. Qxf6+ {[%clk 0:00:38]}  Kh7 {[%clk 0:01:01]} 40. Qxg5 {[%clk 0:00:32]}  Rd6 {[%clk 0:01:00]} 41. Bxe5 {[%clk 0:00:30]}  Rg6 {[%clk 0:00:55]} 42. Qh5+ {[%clk 0:00:29]}  Rh6 {[%clk 0:00:56]} 43. Qg5 {[%clk 0:00:24]}  Qf7 {[%clk 0:00:53]} 44. Bf4 {[%clk 0:00:21]}  Rg6 {[%clk 0:00:46]} 45. Qh5+ {[%clk 0:00:22]}  Kg8 {[%clk 0:00:46]} 46. Bg3 {[%clk 0:00:17]}  Bf8 {[%clk 0:00:43]} 47. Qxb5 {[%clk 0:00:16]}  Rxg4 {[%clk 0:00:43]} 48. e5 {[%clk 0:00:16]}  Qf5 {[%clk 0:00:35]} 49. Qd5+ {[%clk 0:00:15]}  Kh7 {[%clk 0:00:34]} 50. Qb7+ {[%clk 0:00:13]}  Bg7 {[%clk 0:00:34]} 51. Qd5 {[%clk 0:00:12]}  Qe4+ {[%clk 0:00:33]} 52. Qxe4+ {[%clk 0:00:12]}  Rxe4 {[%clk 0:00:34]} 53. Kf3 {[%clk 0:00:08]}  Re1 {[%clk 0:00:33]} 54. Kg4 {[%clk 0:00:07]}  Re2 {[%clk 0:00:30]} 55. f4 {[%clk 0:00:07]}  Rxb2 {[%clk 0:00:29]} 56. f5 {[%clk 0:00:05]}  a5 {[%clk 0:00:27]} 57. f6 {[%clk 0:00:05]}  Bxf6 {[%clk 0:00:27]} 58. exf6 {[%clk 0:00:06]}  Kg6 {[%clk 0:00:27]} 59. Bd6 {[%clk 0:00:03]}  Kxf6 {[%clk 0:00:27]} 60. Kf4 {[%clk 0:00:04]}  a4 {[%clk 0:00:26]} 61. Ke4 {[%clk 0:00:03]}  Ke6 {[%clk 0:00:26]} 62. Bc5 {[%clk 0:00:02]}  Rd2 {[%clk 0:00:23]} 63. Be3 {[%clk 0:00:01]}  Rd3 {[%clk 0:00:24]} 64. Bd4 {[%clk 0:00:01]}  a3 {[%clk 0:00:24]} 0-1


[Site "https://www.chess.com"]

[Event "Early Titled Tuesday Blitz | February 8 2022"]
[White "De Arruda, Leandro Formes"]
[Black "Chen, Justin"]
[WhiteFideId "22722009"]
[BlackFideId "2098199"]
[WhiteElo "1780"]
[BlackElo "2465"]
[Result "0-1"]
[Round "02"]
[TimeControl "180+1"]
[Date "2022.02.08"]
[WhiteClock "0:00:10"]
[BlackClock "0:00:04"]

1. d4 {[%clk 0:02:58]}  d5 {[%clk 0:02:56]} 2. Nf3 {[%clk 0:02:59]}  Bf5 {[%clk 0:02:55]} 3. e3 {[%clk 0:02:59]}  e6 {[%clk 0:02:40]} 4. c4 {[%clk 0:02:59]}  c6 {[%clk 0:02:38]} 5. Nc3 {[%clk 0:02:59]}  Nd7 {[%clk 0:02:37]} 6. cxd5 {[%clk 0:02:58]}  exd5 {[%clk 0:02:36]} 7. Be2 {[%clk 0:02:55]}  Bd6 {[%clk 0:02:32]} 8. O-O {[%clk 0:02:54]}  Ngf6 {[%clk 0:02:29]} 9. a3 {[%clk 0:02:52]}  O-O {[%clk 0:02:26]} 10. b4 {[%clk 0:02:51]}  a6 {[%clk 0:02:23]} 11. Na4 {[%clk 0:02:51]}  Ne4 {[%clk 0:02:18]} 12. Bb2 {[%clk 0:02:49]}  Re8 {[%clk 0:02:00]} 13. Nc5 {[%clk 0:02:49]}  Rb8 {[%clk 0:01:59]} 14. a4 {[%clk 0:02:35]}  Qf6 {[%clk 0:01:24]} 15. Ra2 {[%clk 0:02:14]}  Qh6 {[%clk 0:01:20]} 16. Nxd7 {[%clk 0:01:39]}  Bxd7 {[%clk 0:01:21]} 17. b5 {[%clk 0:01:37]}  axb5 {[%clk 0:01:19]} 18. axb5 {[%clk 0:01:38]}  Bg4 {[%clk 0:01:15]} 19. g3 {[%clk 0:01:35]}  Bh3 {[%clk 0:01:13]} 20. Re1 {[%clk 0:01:33]}  Nxf2 {[%clk 0:01:13]} 21. Qd2 {[%clk 0:01:18]}  Ng4 {[%clk 0:00:19]} 22. Bc1 {[%clk 0:01:00]}  Nf6 {[%clk 0:00:11]} 23. Bf1 {[%clk 0:00:38]}  Ne4 {[%clk 0:00:10]} 24. Qd3 {[%clk 0:00:29]}  Bg4 {[%clk 0:00:10]} 25. Bg2 {[%clk 0:00:26]}  Re6 {[%clk 0:00:08]} 26. Nd2 {[%clk 0:00:16]}  Bf5 {[%clk 0:00:06]} 27. Nxe4 {[%clk 0:00:14]}  Bxe4 {[%clk 0:00:07]} 28. Bxe4 {[%clk 0:00:14]}  Rxe4 {[%clk 0:00:08]} 29. bxc6 {[%clk 0:00:09]}  bxc6 {[%clk 0:00:08]} 30. Ra7 {[%clk 0:00:08]}  Qe6 {[%clk 0:00:07]} 31. Rf1 {[%clk 0:00:08]}  Rf8 {[%clk 0:00:06]} 32. Qc2 {[%clk 0:00:07]}  Bb8 {[%clk 0:00:05]} 33. Rb7 {[%clk 0:00:07]}  h5 {[%clk 0:00:05]} 34. Qb1 {[%clk 0:00:07]}  Bd6 {[%clk 0:00:04]} 35. Qc2 {[%clk 0:00:07]}  h4 {[%clk 0:00:03]} 36. Qxc6 {[%clk 0:00:05]}  hxg3 {[%clk 0:00:04]} 37. hxg3 {[%clk 0:00:06]}  Qg6 {[%clk 0:00:02]} 38. Qxd6 {[%clk 0:00:06]}  Qxd6 {[%clk 0:00:02]} 39. Rf3 {[%clk 0:00:06]}  Re6 {[%clk 0:00:01]} 40. Rb6 {[%clk 0:00:05]}  Qxb6 {[%clk 0:00:01]} 41. Kf1 {[%clk 0:00:06]}  Qc7 {[%clk 0:00:01]} 42. Kg2 {[%clk 0:00:07]}  Qd7 {[%clk 0:00:02]} 43. Rf2 {[%clk 0:00:07]}  Rfe8 {[%clk 0:00:03]} 44. Rxf7 {[%clk 0:00:08]}  Qxf7 {[%clk 0:00:03]} 45. Bd2 {[%clk 0:00:08]}  Rxe3 {[%clk 0:00:04]} 46. Be1 {[%clk 0:00:09]}  Re2+ {[%clk 0:00:04]} 47. Bf2 {[%clk 0:00:10]}  Qxf2+ {[%clk 0:00:04]} 48. Kh3 {[%clk 0:00:11]}  Qh2+ {[%clk 0:00:03]} 49. Kg4 {[%clk 0:00:12]}  R8e4+ {[%clk 0:00:04]} 50. Kg5 {[%clk 0:00:12]}  Qh6+ {[%clk 0:00:04]} 51. Kf5 {[%clk 0:00:10]}  Rf2# {[%clk 0:00:04]} 0-1


[Site "https://www.chess.com"]

[Event "Early Titled Tuesday Blitz | February 8 2022"]
[White "De Souza, Cristiano Gomes"]
[Black "Dzhaparov, Medet"]
[WhiteFideId "2151758"]
[BlackFideId "13803689"]
[WhiteElo "2068"]
[BlackElo "1702"]
[Result "1-0"]
[Round "02"]
[TimeControl "180+1"]
[Date "2022.02.08"]
[WhiteClock "0:01:28"]
[BlackClock "0:01:15"]

1. d4 {[%clk 0:03:00]}  Nf6 {[%clk 0:02:59]} 2. c4 {[%clk 0:03:00]}  g6 {[%clk 0:02:59]} 3. Nc3 {[%clk 0:02:59]}  d5 {[%clk 0:03:00]} 4. Bf4 {[%clk 0:02:57]}  Bg7 {[%clk 0:03:00]} 5. Nf3 {[%clk 0:02:56]}  O-O {[%clk 0:02:59]} 6. e3 {[%clk 0:02:52]}  Bg4 {[%clk 0:02:59]} 7. Rc1 {[%clk 0:02:49]}  Nc6 {[%clk 0:02:57]} 8. h3 {[%clk 0:02:48]}  Bxf3 {[%clk 0:02:56]} 9. Qxf3 {[%clk 0:02:47]}  e6 {[%clk 0:02:56]} 10. Bd3 {[%clk 0:02:42]}  Nb4 {[%clk 0:02:54]} 11. Be2 {[%clk 0:02:38]}  c6 {[%clk 0:02:54]} 12. a3 {[%clk 0:02:34]}  Na6 {[%clk 0:02:53]} 13. O-O {[%clk 0:02:33]}  Nh5 {[%clk 0:02:50]} 14. Bh2 {[%clk 0:02:32]}  Nc7 {[%clk 0:02:48]} 15. b4 {[%clk 0:02:30]}  Re8 {[%clk 0:02:46]} 16. Rfd1 {[%clk 0:02:28]}  Nf6 {[%clk 0:02:45]} 17. g4 {[%clk 0:02:25]}  dxc4 {[%clk 0:02:41]} 18. Bxc4 {[%clk 0:02:23]}  Nfd5 {[%clk 0:02:41]} 19. Ne4 {[%clk 0:02:21]}  b5 {[%clk 0:02:40]} 20. Ba2 {[%clk 0:02:18]}  Re7 {[%clk 0:02:35]} 21. Rxc6 {[%clk 0:02:13]}  Qd7 {[%clk 0:02:34]} 22. Rdc1 {[%clk 0:02:08]}  f5 {[%clk 0:02:27]} 23. gxf5 {[%clk 0:01:59]}  exf5 {[%clk 0:02:28]} 24. Rxc7 {[%clk 0:01:56]}  Qxc7 {[%clk 0:01:36]} 25. Rxc7 {[%clk 0:01:48]}  fxe4 {[%clk 0:01:31]} 26. Bxd5+ {[%clk 0:01:45]}  Kh8 {[%clk 0:01:30]} 27. Qg4 {[%clk 0:01:42]}  Rxc7 {[%clk 0:01:22]} 28. Bxc7 {[%clk 0:01:40]}  Rf8 {[%clk 0:01:19]} 29. Be5 {[%clk 0:01:39]}  Bxe5 {[%clk 0:01:18]} 30. dxe5 {[%clk 0:01:38]}  Kg7 {[%clk 0:01:18]} 31. e6 {[%clk 0:01:37]}  Kf6 {[%clk 0:01:17]} 32. Qf4+ {[%clk 0:01:36]}  Ke7 {[%clk 0:01:16]} 33. Qc7+ {[%clk 0:01:33]}  Kf6 {[%clk 0:01:15]} 34. e7 {[%clk 0:01:33]}  Re8 {[%clk 0:01:15]} 35. Qd6+ {[%clk 0:01:31]}  Kg7 {[%clk 0:01:15]} 36. Bc6 {[%clk 0:01:28]} 1-0


[Site "https://www.chess.com"]

[Event "Early Titled Tuesday Blitz | February 8 2022"]
[White "Demin, Vladimir"]
[Black "Sychev, Klementy"]
[WhiteFideId "4167457"]
[BlackFideId "4114060"]
[WhiteElo "2495"]
[BlackElo "2564"]
[Result "0-1"]
[Round "02"]
[TimeControl "180+1"]
[Date "2022.02.08"]
[WhiteClock "0:00:20"]
[BlackClock "0:00:17"]

1. d4 {[%clk 0:03:00]}  g6 {[%clk 0:02:55]} 2. e4 {[%clk 0:03:00]}  Bg7 {[%clk 0:02:55]} 3. Nc3 {[%clk 0:03:00]}  a6 {[%clk 0:02:52]} 4. a4 {[%clk 0:02:59]}  d6 {[%clk 0:02:51]} 5. h4 {[%clk 0:02:59]}  h6 {[%clk 0:02:50]} 6. Be3 {[%clk 0:02:58]}  Nc6 {[%clk 0:02:49]} 7. Qd2 {[%clk 0:02:58]}  Nf6 {[%clk 0:02:39]} 8. f3 {[%clk 0:02:58]}  Bd7 {[%clk 0:02:24]} 9. Nge2 {[%clk 0:02:47]}  e5 {[%clk 0:02:11]} 10. dxe5 {[%clk 0:02:30]}  dxe5 {[%clk 0:02:05]} 11. Nc1 {[%clk 0:02:16]}  Be6 {[%clk 0:02:01]} 12. Nd3 {[%clk 0:02:15]}  Nh5 {[%clk 0:01:47]} 13. Bf2 {[%clk 0:02:05]}  b6 {[%clk 0:01:27]} 14. O-O-O {[%clk 0:01:51]}  Nf6 {[%clk 0:01:22]} 15. g4 {[%clk 0:01:45]}  Qe7 {[%clk 0:01:22]} 16. Be3 {[%clk 0:01:35]}  O-O-O {[%clk 0:01:18]} 17. Qf2 {[%clk 0:01:33]}  Nd7 {[%clk 0:01:13]} 18. Be2 {[%clk 0:01:08]}  Nd4 {[%clk 0:01:08]} 19. Nxe5 {[%clk 0:00:56]}  Nxe2+ {[%clk 0:01:07]} 20. Qxe2 {[%clk 0:00:56]}  Nxe5 {[%clk 0:01:01]} 21. Qxa6+ {[%clk 0:00:56]}  Kb8 {[%clk 0:01:02]} 22. Nb5 {[%clk 0:00:24]}  Nc6 {[%clk 0:01:01]} 23. Bf4 {[%clk 0:00:19]}  Bc8 {[%clk 0:00:25]} 24. Qxb6+ {[%clk 0:00:18]}  Bb7 {[%clk 0:00:25]} 25. Bxc7+ {[%clk 0:00:17]}  Ka8 {[%clk 0:00:25]} 26. Bxd8 {[%clk 0:00:09]}  Rxd8 {[%clk 0:00:25]} 27. Rxd8+ {[%clk 0:00:09]}  Qxd8 {[%clk 0:00:25]} 28. Qxd8+ {[%clk 0:00:08]}  Nxd8 {[%clk 0:00:25]} 29. Rd1 {[%clk 0:00:09]}  Bf6 {[%clk 0:00:25]} 30. Rd7 {[%clk 0:00:09]}  Bc6 {[%clk 0:00:22]} 31. Rd3 {[%clk 0:00:06]}  Kb8 {[%clk 0:00:20]} 32. f4 {[%clk 0:00:07]}  Bxe4 {[%clk 0:00:18]} 33. Re3 {[%clk 0:00:06]}  Bc6 {[%clk 0:00:17]} 34. g5 {[%clk 0:00:06]}  hxg5 {[%clk 0:00:17]} 35. hxg5 {[%clk 0:00:07]}  Bg7 {[%clk 0:00:17]} 36. b3 {[%clk 0:00:07]}  Ne6 {[%clk 0:00:17]} 37. Rh3 {[%clk 0:00:04]}  Nxf4 {[%clk 0:00:16]} 38. Rh7 {[%clk 0:00:04]}  Ne6 {[%clk 0:00:16]} 39. c3 {[%clk 0:00:04]}  Be4 {[%clk 0:00:13]} 40. a5 {[%clk 0:00:02]}  Bc6 {[%clk 0:00:12]} 41. c4 {[%clk 0:00:03]}  Kb7 {[%clk 0:00:12]} 42. b4 {[%clk 0:00:02]}  Ka6 {[%clk 0:00:08]} 43. Nd6 {[%clk 0:00:02]}  Bf3 {[%clk 0:00:06]} 44. Nxf7 {[%clk 0:00:02]}  Be2 {[%clk 0:00:06]} 45. Nd8 {[%clk 0:00:01]}  Nxd8 {[%clk 0:00:03]} 46. Rxg7 {[%clk 0:00:02]}  Bd3 {[%clk 0:00:04]} 47. Rxg6+ {[%clk 0:00:03]}  Bxg6 {[%clk 0:00:03]} 48. Kb2 {[%clk 0:00:02]}  Ne6 {[%clk 0:00:03]} 49. Kc3 {[%clk 0:00:03]}  Bf5 {[%clk 0:00:03]} 50. c5 {[%clk 0:00:03]}  Kb5 {[%clk 0:00:04]} 51. Kb3 {[%clk 0:00:04]}  Be4 {[%clk 0:00:04]} 52. Kc3 {[%clk 0:00:04]}  Bg6 {[%clk 0:00:04]} 53. Kb3 {[%clk 0:00:04]}  Nxg5 {[%clk 0:00:05]} 54. a6 {[%clk 0:00:03]}  Kxa6 {[%clk 0:00:05]} 55. Kc4 {[%clk 0:00:04]}  Bf7+ {[%clk 0:00:05]} 56. Kd4 {[%clk 0:00:03]}  Kb5 {[%clk 0:00:05]} 57. Ke5 {[%clk 0:00:03]}  Bc4 {[%clk 0:00:05]} 58. Kd6 {[%clk 0:00:03]}  Ne4+ {[%clk 0:00:05]} 59. Ke5 {[%clk 0:00:03]}  Nc3 {[%clk 0:00:05]} 60. Kd6 {[%clk 0:00:04]}  Na4 {[%clk 0:00:04]} 61. c6 {[%clk 0:00:04]}  Kb6 {[%clk 0:00:04]} 62. c7 {[%clk 0:00:03]}  Kb7 {[%clk 0:00:05]} 63. Kd7 {[%clk 0:00:03]}  Nb6+ {[%clk 0:00:05]} 64. Kd8 {[%clk 0:00:04]}  Bb5 {[%clk 0:00:06]} 65. Ke7 {[%clk 0:00:04]}  Kxc7 {[%clk 0:00:06]} 66. Ke6 {[%clk 0:00:04]}  Kc6 {[%clk 0:00:06]} 67. Ke5 {[%clk 0:00:05]}  Bc4 {[%clk 0:00:06]} 68. Kd4 {[%clk 0:00:06]}  Kb5 {[%clk 0:00:07]} 69. Kc3 {[%clk 0:00:07]}  Nd5+ {[%clk 0:00:07]} 70. Kd4 {[%clk 0:00:08]}  Nxb4 {[%clk 0:00:07]} 71. Kc3 {[%clk 0:00:08]}  Nc6 {[%clk 0:00:08]} 72. Kd2 {[%clk 0:00:09]}  Kc5 {[%clk 0:00:08]} 73. Ke3 {[%clk 0:00:09]}  Kd5 {[%clk 0:00:09]} 74. Kf4 {[%clk 0:00:10]}  Bd3 {[%clk 0:00:08]} 75. Ke3 {[%clk 0:00:10]}  Be4 {[%clk 0:00:09]} 76. Kf4 {[%clk 0:00:11]}  Kd4 {[%clk 0:00:09]} 77. Kg5 {[%clk 0:00:11]}  Ke5 {[%clk 0:00:09]} 78. Kg4 {[%clk 0:00:11]}  Nd4 {[%clk 0:00:10]} 79. Kg5 {[%clk 0:00:12]}  Ne2 {[%clk 0:00:10]} 80. Kg4 {[%clk 0:00:12]}  Bd5 {[%clk 0:00:10]} 81. Kg5 {[%clk 0:00:12]}  Bf7 {[%clk 0:00:10]} 82. Kh6 {[%clk 0:00:12]}  Kf6 {[%clk 0:00:10]} 83. Kh7 {[%clk 0:00:12]}  Nf4 {[%clk 0:00:10]} 84. Kh6 {[%clk 0:00:12]}  Ng6 {[%clk 0:00:10]} 85. Kh7 {[%clk 0:00:13]}  Bd5 {[%clk 0:00:11]} 86. Kh6 {[%clk 0:00:13]}  Bg8 {[%clk 0:00:11]} 87. Kh5 {[%clk 0:00:14]}  Ne5 {[%clk 0:00:12]} 88. Kh4 {[%clk 0:00:14]}  Kf5 {[%clk 0:00:12]} 89. Kg3 {[%clk 0:00:15]}  Ng4 {[%clk 0:00:13]} 90. Kf3 {[%clk 0:00:15]}  Bc4 {[%clk 0:00:13]} 91. Kg3 {[%clk 0:00:15]}  Be2 {[%clk 0:00:14]} 92. Kh4 {[%clk 0:00:15]}  Kf4 {[%clk 0:00:14]} 93. Kh5 {[%clk 0:00:15]}  Bd3 {[%clk 0:00:15]} 94. Kh4 {[%clk 0:00:14]}  Bg6 {[%clk 0:00:15]} 95. Kh3 {[%clk 0:00:15]}  Ne3 {[%clk 0:00:16]} 96. Kh4 {[%clk 0:00:15]}  Ng2+ {[%clk 0:00:16]} 97. Kh3 {[%clk 0:00:16]}  Kf3 {[%clk 0:00:17]} 98. Kh2 {[%clk 0:00:16]}  Kf2 {[%clk 0:00:17]} 99. Kh3 {[%clk 0:00:16]}  Bf5+ {[%clk 0:00:18]} 100. Kh2 {[%clk 0:00:17]}  Ne1 {[%clk 0:00:18]} 101. Kh1 {[%clk 0:00:17]}  Bg4 {[%clk 0:00:18]} 102. Kh2 {[%clk 0:00:18]}  Be6 {[%clk 0:00:17]} 103. Kh1 {[%clk 0:00:18]}  Bc4 {[%clk 0:00:15]} 104. Kh2 {[%clk 0:00:19]}  Bf1 {[%clk 0:00:15]} 105. Kh1 {[%clk 0:00:20]}  Bg2+ {[%clk 0:00:16]} 106. Kh2 {[%clk 0:00:20]}  Nf3# {[%clk 0:00:17]} 0-1


[Site "https://www.chess.com"]

[Event "Early Titled Tuesday Blitz | February 8 2022"]
[White "Derraugh, Geordie"]
[Black "Zubov, Alexander"]
[WhiteFideId "2603950"]
[BlackFideId "14109409"]
[WhiteElo "2116"]
[BlackElo "2685"]
[Result "0-1"]
[Round "02"]
[TimeControl "180+1"]
[Date "2022.02.08"]
[WhiteClock "0:00:06"]
[BlackClock "0:01:17"]

1. e4 {[%clk 0:03:00]}  e5 {[%clk 0:02:56]} 2. Nf3 {[%clk 0:03:00]}  Nc6 {[%clk 0:02:56]} 3. Bc4 {[%clk 0:03:00]}  Bc5 {[%clk 0:02:53]} 4. d3 {[%clk 0:03:00]}  Nf6 {[%clk 0:02:53]} 5. c3 {[%clk 0:02:59]}  d6 {[%clk 0:02:53]} 6. O-O {[%clk 0:02:59]}  a6 {[%clk 0:02:51]} 7. h3 {[%clk 0:02:57]}  Ba7 {[%clk 0:02:48]} 8. b4 {[%clk 0:02:57]}  h6 {[%clk 0:02:45]} 9. Be3 {[%clk 0:02:56]}  O-O {[%clk 0:02:41]} 10. Nbd2 {[%clk 0:02:56]}  Ne7 {[%clk 0:02:38]} 11. d4 {[%clk 0:02:53]}  exd4 {[%clk 0:02:35]} 12. cxd4 {[%clk 0:02:54]}  d5 {[%clk 0:02:35]} 13. e5 {[%clk 0:02:46]}  Ne4 {[%clk 0:02:30]} 14. Bd3 {[%clk 0:02:44]}  Bf5 {[%clk 0:02:26]} 15. Qc2 {[%clk 0:02:41]}  Nxd2 {[%clk 0:02:25]} 16. Nxd2 {[%clk 0:02:30]}  Qd7 {[%clk 0:02:22]} 17. f4 {[%clk 0:02:29]}  h5 {[%clk 0:02:13]} 18. Nf3 {[%clk 0:02:27]}  Bxd3 {[%clk 0:02:02]} 19. Qxd3 {[%clk 0:02:26]}  Qf5 {[%clk 0:02:03]} 20. Qc3 {[%clk 0:02:14]}  c6 {[%clk 0:02:01]} 21. Nh4 {[%clk 0:02:14]}  Qe4 {[%clk 0:01:47]} 22. Rae1 {[%clk 0:02:10]}  Nf5 {[%clk 0:01:45]} 23. Bf2 {[%clk 0:01:40]}  Qxf4 {[%clk 0:01:33]} 24. Be3 {[%clk 0:01:14]}  Qxd4 {[%clk 0:01:21]} 25. Bxd4 {[%clk 0:00:34]}  Bxd4+ {[%clk 0:01:20]} 26. Qxd4 {[%clk 0:00:34]}  Nxd4 {[%clk 0:01:20]} 27. Nf5 {[%clk 0:00:28]}  Nxf5 {[%clk 0:01:19]} 28. Rxf5 {[%clk 0:00:29]}  g6 {[%clk 0:01:19]} 29. Rf6 {[%clk 0:00:29]}  Rae8 {[%clk 0:01:19]} 30. g4 {[%clk 0:00:25]}  hxg4 {[%clk 0:01:18]} 31. hxg4 {[%clk 0:00:26]}  Re6 {[%clk 0:01:18]} 32. Rf2 {[%clk 0:00:06]}  Rfe8 {[%clk 0:01:17]} 33. Ref1 {[%clk 0:00:06]}  R8e7 {[%clk 0:01:17]} 0-1


[Site "https://www.chess.com"]

[Event "Early Titled Tuesday Blitz | February 8 2022"]
[White "Dilmukhametov, Artur"]
[Black "Komissarov, Alexey"]
[WhiteFideId "24179922"]
[BlackFideId "4176545"]
[WhiteElo "2266"]
[BlackElo "2216"]
[Result "1-0"]
[Round "02"]
[TimeControl "180+1"]
[Date "2022.02.08"]
[WhiteClock "0:01:16"]
[BlackClock "0:00:02"]

1. e4 {[%clk 0:03:00]}  e5 {[%clk 0:02:55]} 2. Nf3 {[%clk 0:03:00]}  Nc6 {[%clk 0:02:55]} 3. d4 {[%clk 0:03:00]}  exd4 {[%clk 0:02:53]} 4. Nxd4 {[%clk 0:03:01]}  d5 {[%clk 0:02:52]} 5. Nxc6 {[%clk 0:02:44]}  bxc6 {[%clk 0:02:53]} 6. exd5 {[%clk 0:02:44]}  Nf6 {[%clk 0:02:51]} 7. Bd3 {[%clk 0:02:43]}  Qxd5 {[%clk 0:02:50]} 8. O-O {[%clk 0:02:42]}  Bd6 {[%clk 0:02:43]} 9. Nc3 {[%clk 0:02:40]}  Qa5 {[%clk 0:02:34]} 10. h3 {[%clk 0:02:31]}  O-O {[%clk 0:02:22]} 11. Qf3 {[%clk 0:02:30]}  Rb8 {[%clk 0:02:03]} 12. Re1 {[%clk 0:02:17]}  c5 {[%clk 0:01:52]} 13. Bd2 {[%clk 0:02:13]}  Bb7 {[%clk 0:01:28]} 14. Qd1 {[%clk 0:01:52]}  c4 {[%clk 0:00:42]} 15. Bxc4 {[%clk 0:01:40]}  Qc5 {[%clk 0:00:35]} 16. Bd3 {[%clk 0:01:32]}  Rfd8 {[%clk 0:00:16]} 17. Qe2 {[%clk 0:01:20]}  Bc6 {[%clk 0:00:09]} 18. b3 {[%clk 0:01:18]}  Re8 {[%clk 0:00:02]} 19. Qf1 {[%clk 0:01:16]} 1-0


[Site "https://www.chess.com"]

[Event "Early Titled Tuesday Blitz | February 8 2022"]
[White "Domingo Nunez, Alejandro"]
[Black "Srihari L R"]
[WhiteFideId "22245561"]
[BlackFideId "46617116"]
[WhiteElo "2215"]
[BlackElo "2121"]
[Result "0-1"]
[Round "02"]
[TimeControl "180+1"]
[Date "2022.02.08"]
[WhiteClock "0:00:18"]
[BlackClock "0:01:14"]

1. c4 {[%clk 0:03:00]}  e5 {[%clk 0:02:59]} 2. Nc3 {[%clk 0:03:00]}  d6 {[%clk 0:02:59]} 3. g3 {[%clk 0:03:01]}  f5 {[%clk 0:02:58]} 4. Bg2 {[%clk 0:03:01]}  Nf6 {[%clk 0:02:59]} 5. e3 {[%clk 0:03:00]}  Be7 {[%clk 0:02:59]} 6. Nge2 {[%clk 0:03:00]}  O-O {[%clk 0:02:59]} 7. d4 {[%clk 0:03:00]}  Kh8 {[%clk 0:02:57]} 8. b4 {[%clk 0:02:59]}  c6 {[%clk 0:02:50]} 9. a4 {[%clk 0:02:58]}  e4 {[%clk 0:02:49]} 10. Rb1 {[%clk 0:02:56]}  d5 {[%clk 0:02:48]} 11. cxd5 {[%clk 0:02:30]}  cxd5 {[%clk 0:02:38]} 12. Qb3 {[%clk 0:02:31]}  Be6 {[%clk 0:02:37]} 13. Ba3 {[%clk 0:02:28]}  Nc6 {[%clk 0:02:36]} 14. O-O {[%clk 0:02:20]}  a5 {[%clk 0:02:34]} 15. Na2 {[%clk 0:02:18]}  axb4 {[%clk 0:02:33]} 16. Nxb4 {[%clk 0:02:18]}  Na5 {[%clk 0:02:33]} 17. Qc2 {[%clk 0:01:48]}  Nc4 {[%clk 0:02:33]} 18. Bc1 {[%clk 0:01:48]}  Qa5 {[%clk 0:02:24]} 19. Nf4 {[%clk 0:01:34]}  Bg8 {[%clk 0:02:15]} 20. Nbxd5 {[%clk 0:01:29]}  Nxd5 {[%clk 0:02:12]} 21. Rb5 {[%clk 0:01:29]}  Qc3 {[%clk 0:02:07]} 22. Qb1 {[%clk 0:01:18]}  Nxf4 {[%clk 0:02:04]} 23. gxf4 {[%clk 0:01:18]}  Nd6 {[%clk 0:02:01]} 24. Bb2 {[%clk 0:01:12]}  Qc7 {[%clk 0:01:52]} 25. Rc5 {[%clk 0:01:05]}  Qd7 {[%clk 0:01:51]} 26. Rfc1 {[%clk 0:00:59]}  Rfc8 {[%clk 0:01:50]} 27. Bf1 {[%clk 0:00:58]}  b6 {[%clk 0:01:42]} 28. R5c2 {[%clk 0:00:47]}  Rxc2 {[%clk 0:01:39]} 29. Qxc2 {[%clk 0:00:48]}  Qxa4 {[%clk 0:01:39]} 30. Qc7 {[%clk 0:00:47]}  Qa7 {[%clk 0:01:35]} 31. d5 {[%clk 0:00:33]}  Qxc7 {[%clk 0:01:28]} 32. Rxc7 {[%clk 0:00:34]}  Bf6 {[%clk 0:01:28]} 33. Bxf6 {[%clk 0:00:33]}  gxf6 {[%clk 0:01:29]} 34. Rc6 {[%clk 0:00:34]}  Rd8 {[%clk 0:01:28]} 35. Rxb6 {[%clk 0:00:29]}  Bxd5 {[%clk 0:01:28]} 36. Bh3 {[%clk 0:00:30]}  Bc4 {[%clk 0:01:26]} 37. Rb2 {[%clk 0:00:20]}  Rg8+ {[%clk 0:01:20]} 38. Kh1 {[%clk 0:00:20]}  Bd3 {[%clk 0:01:18]} 39. Rb6 {[%clk 0:00:18]}  Be2 {[%clk 0:01:18]} 40. Bg2 {[%clk 0:00:19]}  Nc4 {[%clk 0:01:15]} 41. h4 {[%clk 0:00:18]}  Nxb6 {[%clk 0:01:14]} 0-1


[Site "https://www.chess.com"]